bitfinex-derivatives/quotes_BNBF0:USTF0_20250331
["timestamp","ask_amount","ask_price","bid_price","bid_amount"]
[1743439818319,1.135,605.15,604.15,2.31893146]
[1743439818522,0.28780548,605.14,604.16,2.31892598]
[1743439818717,0.28780548,605.14,604.17,1.98788785]
[1743439818923,0.28780548,605.14,604.18,4.7293327]
[1743439819218,0.28780548,605.14,604.19,1.98788785]
[1743439819422,0.28780548,605.14,604.2,1.98788785]
[1743439819625,0.28780548,605.14,604.21,1.98788785]
[1743439819823,0.28780548,605.14,604.22,2.31889311]
[1743439820024,0.28780548,605.14,604.23,2.31888763]
[1743439820224,0.28780548,605.14,604.24,2.31888215]
[1743439820424,0.28780548,605.14,604.25,5.06032152]
[1743439820620,0.28780548,605.14,604.26,2.3188712]
[1743439820825,0.28780548,605.14,604.27,2.31886572]
[1743439821126,0.28780548,605.14,604.28,1.98788785]
[1743439821322,1.135,605.15,604.27,0.33097787]
[1743439821323,1.135,605.15,604.29,1.98788785]
[1743439821521,1.135,605.15,604.3,1.98788785]
[1743439821726,0.28777692,605.13,604.31,0.33095596]
[1743439824328,1.135,605.15,604.31,0.33095596]
[1743439824726,0.2877793,605.12,604.31,0.33095596]
[1743439830332,1.135,605.15,604.32,1.98788785]
[1743439830533,1.135,605.15,604.34,0.33093953]
[1743439830731,1.135,605.15,604.35,1.98788785]
[1743439830936,1.135,605.15,604.36,2.31881643]
[1743439831136,1.135,605.15,604.37,2.31881096]
[1743439831337,1.135,605.15,604.38,0.33091763]
[1743439847151,0.28774242,605.14,604.38,0.33091763]
[1743439847450,1.135,605.15,604.38,0.33091763]
[1743439855452,0.98596335,605.9,604.38,0.33091763]
[1743439855651,1.28967809,605.89,604.38,0.33091763]
[1743439855950,0.30371474,605.88,604.38,0.33091763]
[1743439856153,0.30371474,605.87,604.38,0.33091763]
[1743439856352,0.30371474,605.86,604.38,0.33091763]
[1743439856551,0.30371474,605.85,604.38,0.33091763]
[1743439856750,0.30371474,605.84,604.38,0.33091763]
[1743439856950,0.30371474,605.87,604.38,0.33091763]
[1743439857151,0.28769128,605.83,604.38,0.33091763]
[1743439857351,0.30371474,605.82,604.38,0.33091763]
[1743439857955,0.30371712,605.81,604.38,0.33091763]
[1743439858148,0.30371712,605.8,604.38,0.33091763]
[1743439858347,0.30371712,605.82,604.38,0.33091763]
[1743439859054,1.53471712,605.82,604.38,0.33091763]
[1743439859350,0.30371712,605.81,604.38,0.33091763]
[1743439860851,0.28767582,605.8,604.38,0.33091763]
[1743439861051,0.30371712,605.79,604.38,0.33091763]
[1743439863657,0.59136559,605.78,604.38,0.33091763]
[1743439863857,0.30371712,605.77,604.38,0.33091763]
[1743439864457,0.28764847,605.78,604.38,0.33091763]
[1743439864656,0.30366776,605.77,604.38,0.33091763]
[1743439866358,0.30366776,605.76,604.38,0.33091763]
[1743439866556,0.30366776,605.75,604.38,0.33091763]
[1743439867761,0.28763302,605.76,604.38,0.33091763]
[1743439867961,0.30366733,605.75,604.38,0.33091763]
[1743439869060,0.30366702,605.74,604.38,0.33091763]
[1743439869262,0.30366702,605.75,604.38,0.33091763]
[1743439869459,0.30366702,605.73,604.38,0.33091763]
[1743439869763,0.28763302,605.76,604.38,0.33091763]
[1743439869764,0.30366702,605.74,604.38,0.33091763]
[1743439869964,0.28763302,605.76,604.38,0.33091763]
[1743439869965,0.30366702,605.72,604.38,0.33091763]
[1743439870164,0.30366702,605.71,604.38,0.33091763]
[1743439870466,0.30366702,605.7,604.38,0.33091763]
[1743439870663,0.30366702,605.75,604.38,0.33091763]
[1743439870860,0.30366702,605.74,604.39,1.98788785]
[1743439871164,0.30366454,605.73,604.41,0.3309012]
[1743439871364,0.30366454,605.72,604.42,1.98788785]
[1743439871561,0.30366454,605.71,604.44,0.33088478]
[1743439871761,0.30366454,605.7,604.45,1.98788785]
[1743439871961,0.30366454,605.69,604.46,1.98788785]
[1743439872167,0.28763302,605.76,604.47,1.98788785]
[1743439872168,0.30366454,605.68,604.47,1.98788785]
[1743439872368,0.30366454,605.67,604.49,0.33085741]
[1743439872564,0.30366454,605.81,604.49,0.33085741]
[1743439872771,0.28761281,605.67,604.49,0.33085741]
[1743439872965,0.30366454,605.66,604.49,0.33085741]
[1743439873170,0.30366454,605.81,604.49,0.33085741]
[1743439873368,0.30366454,605.65,604.49,0.33085741]
[1743439873670,1.231,605.82,604.49,0.33085741]
[1743439873671,0.30366454,605.64,604.49,0.33085741]
[1743439873870,0.30366454,605.81,604.49,0.33085741]
[1743439874066,0.2876247,605.64,604.5,1.98788785]
[1743439874272,0.30366454,605.63,604.52,0.33084099]
[1743439874471,1.231,605.82,604.52,2.31872884]
[1743439874472,0.30366454,605.81,604.52,2.31872884]
[1743439874672,0.28759499,605.63,604.52,2.31872884]
[1743439874872,0.30366454,605.62,604.52,0.33084099]
[1743439875372,1.231,605.82,604.52,0.33084099]
[1743439875373,0.28764253,605.61,604.52,0.33084099]
[1743439875574,0.30366454,605.6,604.52,0.33084099]
[1743439878278,0.28764253,605.61,604.52,0.33084099]
[1743439881375,1.231,605.82,604.52,0.33084099]
[1743439881780,0.28766987,605.81,604.52,0.33084099]
[1743439884386,1.231,605.82,604.52,0.33084099]
[1743439884990,0.28769485,605.81,604.52,0.33084099]
[1743439887387,1.231,605.82,604.52,0.33084099]
[1743439887793,0.28771506,605.8,604.52,0.33084099]
[1743439888187,0.30357958,605.79,604.52,0.33084099]
[1743439890689,0.59125302,605.78,604.52,0.33084099]
[1743439890894,0.30357958,605.77,604.52,0.33084099]
[1743439891697,0.30354477,605.76,604.52,0.33084099]
[1743439891897,0.30354477,605.77,604.52,0.33084099]
[1743439892198,0.3035424,605.76,604.52,0.33084099]
[1743439892492,0.28767344,605.78,604.52,0.33084099]
[1743439893495,1.231,605.82,604.52,0.33084099]
[1743439893690,0.28755934,605.77,604.52,0.33084099]
[1743439897901,0.30357364,605.76,604.52,0.33084099]
[1743439899500,0.98435549,606.2,604.52,0.33084099]
[1743439899693,0.28762232,605.75,604.52,0.33084099]
[1743439899896,0.32992956,606.19,604.52,0.33084099]
[1743439900099,0.30360407,605.74,604.52,0.33084099]
[1743439900298,0.59117648,605.74,604.52,0.33084099]
[1743439900700,0.30360407,605.73,604.52,0.33084099]
[1743439902104,1.022,605.72,604.52,0.33084099]
[1743439902402,0.30360407,605.71,604.52,0.33084099]
[1743439902803,0.2876782,605.7,604.52,0.33084099]
[1743439903304,0.30366218,605.69,604.52,0.33084099]
[1743439905198,0.30367091,605.68,604.52,0.33084099]
[1743439905399,0.30367091,605.67,604.52,0.33084099]
[1743439905605,0.30367091,605.71,604.52,0.33084099]
[1743439905899,0.28767582,605.67,604.52,0.33084099]
[1743439908300,0.30361899,605.66,604.52,0.33084099]
[1743439908498,1.022,605.72,604.52,0.33084099]
[1743439908703,0.28766274,605.66,604.52,0.33084099]
[1743439911504,1.022,605.72,604.52,0.33084099]
[1743439911806,0.28760331,605.65,604.52,0.33084099]
[1743439914412,1.022,605.72,604.52,0.33084099]
[1743439914805,0.28758192,605.71,604.52,0.33084099]
[1743439917212,0.30362215,605.7,604.52,0.33084099]
[1743439917713,0.30362215,605.69,604.52,0.33084099]
[1743439918012,0.30362215,605.68,604.52,0.33084099]
[1743439920713,0.28765561,605.67,604.52,0.33084099]
[1743439921109,0.30364946,605.66,604.52,0.33084099]
[1743439921712,0.28765561,605.67,604.52,0.33084099]
[1743439921908,0.30364669,605.66,604.52,0.33084099]
[1743439923409,1.022,605.72,604.52,0.33084099]
[1743439923612,0.30365418,605.71,604.52,0.33084099]
[1743439923813,0.28768295,605.65,604.52,0.33084099]
[1743439926319,1.022,605.72,604.52,0.33084099]
[1743439926618,0.28766869,605.64,604.52,0.33084099]
[1743439926918,1.022,605.72,604.52,0.33084099]
[1743439927316,0.28766631,605.63,604.52,0.33084099]
[1743439927515,1.022,605.72,604.52,0.33084099]
[1743439928018,0.28766274,605.62,604.52,0.33084099]
[1743439928215,1.022,605.72,604.52,0.33084099]
[1743439928412,0.28766155,605.61,604.52,0.33084099]
[1743439928811,1.022,605.72,604.52,0.33084099]
[1743439929014,0.28766155,605.6,604.52,0.33084099]
[1743439929416,1.022,605.72,604.52,0.33084099]
[1743439929817,0.28765442,605.59,604.52,0.33084099]
[1743439930119,1.022,605.72,604.52,0.33084099]
[1743439930318,0.2876568,605.58,604.52,0.33084099]
[1743439930714,1.022,605.72,604.52,0.33084099]
[1743439930917,0.28765798,605.57,604.52,0.33084099]
[1743439931319,1.022,605.72,604.52,0.33084099]
[1743439931617,0.28765561,605.56,604.52,0.33084099]
[1743439931817,1.022,605.72,604.52,0.33084099]
[1743439932017,0.30362317,605.71,604.52,0.33084099]
[1743439932216,0.28764966,605.55,604.52,0.33084099]
[1743439932520,1.022,605.72,604.52,0.33084099]
[1743439932722,0.28765561,605.54,604.52,0.33084099]
[1743439933020,1.022,605.72,604.52,0.33084099]
[1743439933222,0.30365204,605.71,604.52,0.33084099]
[1743439933421,0.28766869,605.53,604.52,0.33084099]
[1743439933723,1.022,605.72,604.52,0.33084099]
[1743439933917,0.28764728,605.52,604.52,0.33084099]
[1743439934421,1.022,605.72,604.52,0.33084099]
[1743439934817,0.28764015,605.51,604.52,0.33084099]
[1743439935024,1.022,605.72,604.52,0.33084099]
[1743439936018,0.28765204,605.71,604.52,0.33084099]
[1743439936221,0.3036372,605.7,604.52,0.33084099]
[1743439936417,0.28765204,605.71,604.52,0.33084099]
[1743439936623,0.30366679,605.7,604.52,0.33084099]
[1743439938521,0.30366679,605.71,604.52,0.33084099]
[1743439938722,0.28768414,605.69,604.52,0.33084099]
[1743439941518,1.022,605.72,604.52,0.33084099]
[1743439941916,0.28767582,605.68,604.52,0.33084099]
[1743439944422,1.022,605.72,604.52,0.33084099]
[1743439944721,0.28771863,605.67,604.52,0.33084099]
[1743439947124,0.30367379,605.66,604.52,0.33084099]
[1743439947530,0.30367379,605.91,604.52,0.33084099]
[1743439947729,0.28774361,605.65,604.52,0.33084099]
[1743439947926,0.30367379,605.64,604.52,0.33084099]
[1743439948134,0.30367379,605.9,604.52,0.33084099]
[1743439948335,0.28771268,605.64,604.52,0.33084099]
[1743439948529,0.30367379,605.63,604.52,0.33084099]
[1743439948732,0.98751335,605.92,604.52,0.33084099]
[1743439949033,0.28765442,605.63,604.52,0.33084099]
[1743439949228,0.303684,605.62,604.52,0.33084099]
[1743439949431,1.17364847,605.62,604.52,0.33084099]
[1743439949630,0.303684,605.61,604.52,0.33084099]
[1743439950427,1.17364847,605.62,604.52,0.33084099]
[1743439950634,0.30365744,605.61,604.52,0.33084099]
[1743439952129,1.17364847,605.62,604.52,0.33084099]
[1743439952335,0.30362996,605.61,604.52,0.33084099]
[1743439953936,1.17364847,605.62,604.52,0.33084099]
[1743439959436,0.886,605.62,604.52,0.33084099]
[1743439959838,0.28768058,605.61,604.52,0.33084099]
[1743439962433,0.886,605.62,604.52,0.33084099]
[1743439962639,0.28769603,605.6,604.52,0.33084099]
[1743439965441,0.886,605.62,604.52,0.33084099]
[1743439965841,0.28771268,605.59,604.52,0.33084099]
[1743439968440,0.886,605.62,604.53,1.98807255]
[1743439968649,0.30361932,605.61,604.55,0.33082458]
[1743439968847,0.28767106,605.58,604.56,1.98807255]
[1743439969041,0.30361932,605.57,604.58,0.33080816]
[1743439969247,0.30361932,605.57,604.59,1.98807255]
[1743439969449,0.30361932,605.57,604.6,2.31886977]
[1743439969743,0.30361932,605.57,604.61,0.33079175]
[1743439971745,0.59123332,605.56,604.61,0.33079175]
[1743439971945,0.287614,605.56,604.61,0.33079175]
[1743439974447,0.886,605.62,604.61,0.33079175]
[1743439974651,0.28765798,605.55,604.61,0.33079175]
[1743439977356,0.886,605.62,604.61,0.33079175]
[1743439977752,0.28771506,605.54,604.61,0.33079175]
[1743439977952,0.886,605.62,604.61,0.33079175]
[1743439978755,0.28771387,605.61,604.61,0.33079175]
[1743439986457,0.886,605.62,604.61,0.33079175]
[1743439986858,0.28773885,605.6,604.61,0.33079175]
[1743439988564,0.30368927,605.59,604.61,0.33079175]
[1743439992772,0.59142574,605.58,604.61,0.33079175]
[1743439992973,0.30368927,605.57,604.61,0.33079175]
[1743439995572,0.30368927,605.61,604.61,0.33079175]
[1743439995772,0.28774123,605.56,604.61,0.33079175]
[1743439996269,0.30368997,605.55,604.61,0.33079175]
[1743439996868,0.3036791,605.54,604.61,0.33079175]
[1743439997074,0.3036791,605.55,604.61,0.33079175]
[1743439997274,0.28774123,605.56,604.61,0.33079175]
[1743439997476,0.30367488,605.55,604.61,0.33079175]
[1743439998772,0.59139113,605.54,604.61,0.33079175]
[1743439998973,0.30367488,605.53,604.61,0.33079175]
[1743439999475,0.28771625,605.54,604.61,0.33079175]
[1743440000474,1.20671714,605.53,604.61,0.33079175]
[1743440000678,0.30371714,605.52,604.61,0.33079175]
[1743440001874,0.28776265,605.51,604.61,0.33079175]
[1743440002078,0.30371714,605.5,604.61,0.33079175]
[1743440002681,0.30378097,605.49,604.61,0.33079175]
[1743440002878,0.30378097,605.48,604.61,0.33079175]
[1743440003079,0.28776265,605.51,604.61,0.33079175]
[1743440003278,0.30377195,605.5,604.61,0.33079175]
[1743440004078,0.28776265,605.51,604.61,0.33079175]
[1743440004477,0.903,605.53,604.61,0.33079175]
[1743440004776,0.28779358,605.5,604.61,0.33079175]
[1743440007385,0.903,605.53,604.61,0.33079175]
[1743440007584,0.30374732,605.52,604.61,0.33079175]
[1743440007783,0.2877912,605.49,604.61,0.33079175]
[1743440009191,0.30377527,605.48,604.61,0.33079175]
[1743440010894,0.59159385,605.47,604.61,0.33079175]
[1743440011097,0.30377527,605.46,604.61,0.33079175]
[1743440012993,0.30378043,605.45,604.61,0.33079175]
[1743440013194,0.30378043,605.46,604.61,0.33079175]
[1743440013391,0.30378043,605.45,604.61,0.33079175]
[1743440013698,0.30378043,605.44,604.61,0.33079175]
[1743440013897,0.28778406,605.45,604.61,0.33079175]
[1743440014094,0.30378043,605.43,604.61,0.33079175]
[1743440014294,0.30378043,605.42,604.61,0.33079175]
[1743440014491,0.30378043,605.44,604.61,0.33079175]
[1743440014699,0.30378043,605.43,604.61,0.33079175]
[1743440014896,0.28778406,605.45,604.61,0.33079175]
[1743440014897,0.30378043,605.42,604.61,0.33079175]
[1743440015097,0.30378043,605.41,604.61,0.33079175]
[1743440015294,0.30378043,605.44,604.61,0.33079175]
[1743440015492,0.30378043,605.43,604.61,0.33079175]
[1743440015692,0.30378043,605.44,604.61,0.33079175]
[1743440015892,0.30378043,605.43,604.61,0.33079175]
[1743440016293,0.30378043,605.44,604.61,0.33079175]
[1743440016798,0.30378043,605.43,604.61,0.33079175]
[1743440016996,0.28777454,605.43,604.61,0.33079175]
[1743440019504,0.903,605.53,604.61,0.33079175]
[1743440019900,0.59151485,605.52,604.61,0.33079175]
[1743440020201,0.30374745,605.51,604.61,0.33079175]
[1743440021203,0.2877674,605.52,604.61,0.33079175]
[1743440021400,0.30374526,605.51,604.61,0.33079175]
[1743440021603,0.2877674,605.52,604.61,0.33079175]
[1743440021805,0.30374407,605.51,604.61,0.33079175]
[1743440022706,0.30374407,605.52,604.61,0.33079175]
[1743440023004,0.28776265,605.5,604.61,0.33079175]
[1743440023305,0.30374407,605.49,604.61,0.33079175]
[1743440025105,0.3037193,605.48,604.61,0.33079175]
[1743440025301,0.3037193,605.47,604.61,0.33079175]
[1743440025501,0.28776265,605.5,604.61,0.33079175]
[1743440025502,0.3037193,605.46,604.61,0.33079175]
[1743440025801,0.3037193,605.45,604.61,0.33079175]
[1743440025997,0.3037193,605.49,604.61,0.33079175]
[1743440026198,0.28776265,605.5,604.61,0.33079175]
[1743440026199,0.3037193,605.48,604.61,0.33079175]
[1743440026401,0.28776265,605.5,604.61,0.33079175]
[1743440027305,0.30375088,605.49,604.61,0.33079175]
[1743440031602,0.30375088,605.52,604.61,0.33079175]
[1743440031907,0.28779358,605.48,604.61,0.33079175]
[1743440032107,0.30375088,605.47,604.61,0.33079175]
[1743440034804,0.28776621,605.46,604.61,0.33079175]
[1743440035202,0.30375088,605.45,604.61,0.33079175]
[1743440037605,1.27,605.45,604.61,0.33079175]
[1743440037804,0.59150401,605.44,604.61,0.33079175]
[1743440038111,0.30375088,605.43,604.61,0.33079175]
[1743440038711,0.28775313,605.44,604.61,0.33079175]
[1743440039613,0.30374095,605.43,604.61,0.33079175]
[1743440040418,1.27,605.45,604.61,0.33079175]
[1743440040717,0.28772458,605.42,604.61,0.33079175]
[1743440043520,1.27,605.45,604.61,0.33079175]
[1743440043721,0.28770198,605.41,604.61,0.33079175]
[1743440046526,1.27,605.45,604.61,0.33079175]
[1743440046821,0.28768058,605.4,604.61,0.33079175]
[1743440052532,1.27,605.45,604.61,0.33079175]
[1743440053034,0.28774242,605.39,604.61,0.33079175]
[1743440055436,1.27,605.45,604.61,0.33079175]
[1743440055737,0.28774004,605.38,604.61,0.33079175]
[1743440058438,1.27,605.45,604.61,0.33079175]
[1743440058939,0.28777573,605.44,604.61,0.33079175]
[1743440061443,1.27,605.45,604.61,0.33079175]
[1743440061739,0.28774599,605.43,604.61,0.33079175]
[1743440064541,1.27,605.45,604.61,0.33079175]
[1743440064848,0.2877329,605.42,604.61,0.33079175]
[1743440070449,1.27,605.45,604.61,0.33079175]
[1743440070749,0.28771506,605.41,604.61,0.33079175]
[1743440073550,1.27,605.45,604.61,0.33079175]
[1743440073744,0.28772815,605.41,604.61,0.33079175]
[1743440076450,1.27,605.45,604.61,0.33079175]
[1743440082754,0.28763183,605.44,604.61,0.33079175]
[1743440085456,1.27,605.45,604.61,0.33079175]
[1743440085658,0.28762827,605.43,604.61,0.33079175]
[1743440088664,0.98395459,606.3,604.61,0.33079175]
[1743440088960,0.28754865,605.42,604.61,0.33079175]
[1743440089164,0.98395459,606.28,604.61,0.33079175]
[1743440089358,0.59112205,606.18,604.61,0.33079175]
[1743440089561,0.63352097,606.17,604.61,0.33079175]
[1743440089762,0.30358053,606.16,604.61,0.33079175]
[1743440090164,0.93,606.15,604.61,0.33079175]
[1743440090369,0.30358053,606.14,604.61,0.33079175]
[1743440091669,0.28757122,606.13,604.61,0.33079175]
[1743440091865,0.30358053,606.12,604.61,0.33079175]
[1743440092468,0.28757122,606.13,604.61,0.33079175]
[1743440093168,0.30359515,606.12,604.61,0.33079175]
[1743440094667,0.30359515,606.11,604.61,0.33079175]
[1743440094868,0.30359515,606.1,604.61,0.33079175]
[1743440095172,0.28765561,606.11,604.61,0.33079175]
[1743440097469,0.93,606.15,604.61,0.33079175]
[1743440097770,0.30358954,606.14,604.61,0.33079175]
[1743440097968,0.59124871,606.14,604.61,0.33079175]
[1743440098164,0.30358954,606.13,604.61,0.33079175]
[1743440099268,0.28765917,606.14,604.61,0.33079175]
[1743440099468,0.30360373,606.13,604.61,0.33079175]
[1743440100475,0.98773531,606.1,604.61,0.33079175]
[1743440100770,0.98773531,606.08,604.61,0.33079175]
[1743440100975,0.63364968,606.07,604.61,0.33079175]
[1743440101173,0.63365513,606.06,604.61,0.33079175]
[1743440101373,0.98773531,606.0,604.61,0.33079175]
[1743440101574,0.63366057,606.05,604.61,0.33079175]
[1743440101575,0.3036548,605.99,604.61,0.33079175]
[1743440101776,0.3036548,605.98,604.61,0.33079175]
[1743440101974,0.3036548,606.04,604.61,0.33079175]
[1743440102170,0.63367146,606.03,604.61,0.33079175]
[1743440102373,0.63367691,606.02,604.61,0.33079175]
[1743440102573,0.33002211,606.02,604.61,0.33079175]
[1743440102769,0.30367529,606.01,604.61,0.33079175]
[1743440103075,0.330033,606.0,604.61,0.33079175]
[1743440103276,0.30367529,605.99,604.61,0.33079175]
[1743440103473,0.33004389,605.98,604.61,0.33079175]
[1743440103673,0.30367529,605.97,604.61,0.33079175]
[1743440103873,0.59135824,605.97,604.61,0.33079175]
[1743440104075,0.30367529,605.96,604.61,0.33079175]
[1743440104378,0.30367993,605.95,604.61,0.33079175]
[1743440104577,0.30367993,605.96,604.61,0.33079175]
[1743440104772,0.28768295,605.97,604.61,0.33079175]
[1743440104773,0.30367993,605.95,604.61,0.33079175]
[1743440104977,0.30367993,605.94,604.61,0.33079175]
[1743440105277,0.30367993,605.93,604.61,0.33079175]
[1743440105481,1.29150962,605.95,604.61,0.33079175]
[1743440105680,0.30367993,605.94,604.61,0.33079175]
[1743440105881,0.33007113,605.93,604.61,0.33079175]
[1743440106081,0.30367993,605.92,604.61,0.33079175]
[1743440106282,0.33008202,605.91,604.61,0.33079175]
[1743440106482,0.30367993,605.9,604.61,0.33079175]
[1743440106676,0.33009292,605.89,604.61,0.33079175]
[1743440106878,0.30367993,605.88,604.61,0.33079175]
[1743440108180,0.61781631,605.89,604.61,0.33079175]
[1743440108377,0.30372313,605.88,604.61,0.33079175]
[1743440108580,0.30372313,605.87,604.61,0.33079175]
[1743440108779,0.30372313,605.86,604.61,0.33079175]
[1743440108979,0.61781631,605.89,604.61,0.33079175]
[1743440108980,0.30372313,605.85,604.61,0.33079175]
[1743440109182,0.30372313,605.84,604.61,0.33079175]
[1743440109683,0.30372313,605.83,604.61,0.33079175]
[1743440109885,0.30372313,605.82,604.61,0.33079175]
[1743440110081,0.30372313,605.81,604.61,0.33079175]
[1743440110389,0.30372313,605.8,604.61,0.33079175]
[1743440110582,0.28773647,605.83,604.61,0.33079175]
[1743440110583,0.30372313,605.82,604.61,0.33079175]
[1743440110778,0.30372313,605.81,604.61,0.33079175]
[1743440110978,0.30372262,605.8,604.61,0.33079175]
[1743440111178,0.30372262,605.79,604.61,0.33079175]
[1743440111384,0.30372262,605.78,604.61,0.33079175]
[1743440111583,0.30372262,605.77,604.61,0.33079175]
[1743440111786,0.30372262,605.82,604.61,0.33079175]
[1743440112081,0.30372262,605.81,604.61,0.33079175]
[1743440112279,0.30372262,605.82,604.61,0.33079175]
[1743440112586,0.30372262,605.81,604.61,0.33079175]
[1743440112784,0.30372262,605.8,604.61,0.33079175]
[1743440115787,0.30372262,605.79,604.61,0.33079175]
[1743440115982,0.28775551,605.79,604.61,0.33079175]
[1743440116182,0.30371912,605.78,604.61,0.33079175]
[1743440117683,0.30372118,605.77,604.61,0.33079175]
[1743440117882,0.30372118,605.76,604.61,0.33079175]
[1743440118087,0.30372118,605.75,604.61,0.33079175]
[1743440118283,0.30372118,605.78,604.61,0.33079175]
[1743440118686,0.30372118,605.77,604.61,0.33079175]
[1743440118884,0.28776146,605.77,604.61,0.33079175]
[1743440119089,0.30372118,605.76,604.61,0.33079175]
[1743440119291,0.28776146,605.77,604.61,0.33079175]
[1743440119489,0.30373582,605.76,604.61,0.33079175]
[1743440121683,0.59151036,605.75,604.61,0.33079175]
[1743440121885,0.30373582,605.74,604.61,0.33079175]
[1743440122693,0.30369635,605.73,604.61,0.33079175]
[1743440122893,0.30369635,605.74,604.61,0.33079175]
[1743440123091,0.30369635,605.73,604.61,0.33079175]
[1743440123296,0.30369635,605.74,604.61,0.33079175]
[1743440123493,0.30369635,605.73,604.61,0.33079175]
[1743440123694,0.30369635,605.74,604.61,0.33079175]
[1743440123993,0.30369635,605.73,604.61,0.33079175]
[1743440124198,0.30369635,605.72,604.61,0.33079175]
[1743440124395,0.30369635,605.71,604.61,0.33079175]
[1743440124607,0.303706,605.7,604.61,0.33079175]
[1743440124800,0.303706,605.69,604.61,0.33079175]
[1743440125000,0.303706,605.68,604.61,0.33079175]
[1743440125199,0.303706,605.74,604.61,0.33079175]
[1743440125399,0.303706,605.67,604.61,0.33079175]
[1743440125603,0.303706,605.66,604.61,0.33079175]
[1743440125806,0.303706,605.74,604.61,0.33079175]
[1743440126006,0.30370817,605.73,604.61,0.33079175]
[1743440126211,0.30370817,605.74,604.61,0.33079175]
[1743440126405,0.30370817,605.73,604.61,0.33079175]
[1743440126705,0.30370817,605.72,604.61,0.33079175]
[1743440126903,0.30370817,605.71,604.61,0.33079175]
[1743440127105,0.30370817,605.7,604.61,0.33079175]
[1743440127302,0.30370817,605.74,604.61,0.33079175]
[1743440127505,0.30370817,605.73,604.61,0.33079175]
[1743440127703,0.30370817,605.88,604.61,0.33079175]
[1743440127904,0.28773528,605.73,604.61,0.33079175]
[1743440128105,0.30370817,605.72,604.61,0.33079175]
[1743440128404,0.30370817,605.71,604.61,0.33079175]
[1743440129505,0.30369881,605.7,604.61,0.33079175]
[1743440129706,0.30369881,605.71,604.61,0.33079175]
[1743440129909,0.30369881,605.7,604.61,0.33079175]
[1743440130103,0.30369881,605.71,604.61,0.33079175]
[1743440130307,0.30369881,605.7,604.61,0.33079175]
[1743440130607,0.30369881,605.69,604.61,0.33079175]
[1743440130907,0.30369881,605.68,604.61,0.33079175]
[1743440131106,0.30370788,605.67,604.61,0.33079175]
[1743440131302,0.30370788,605.69,604.61,0.33079175]
[1743440131507,0.30370788,605.68,604.61,0.33079175]
[1743440131807,0.30370788,605.67,604.61,0.33079175]
[1743440132008,0.30370788,605.69,604.61,0.33079175]
[1743440132210,0.30370788,605.68,604.61,0.33079175]
[1743440132509,0.30370788,605.67,604.61,0.33079175]
[1743440132709,0.30370788,605.69,604.61,0.33079175]
[1743440133812,0.59143008,605.68,604.61,0.33079175]
[1743440134011,0.30370788,605.67,604.61,0.33079175]
[1743440134512,0.30369134,605.66,604.61,0.33079175]
[1743440134709,0.30369134,605.67,604.61,0.33079175]
[1743440134907,0.2877222,605.68,604.61,0.33079175]
[1743440134908,0.30369134,605.66,604.61,0.33079175]
[1743440135107,0.30369134,605.67,604.61,0.33079175]
[1743440135311,0.2877222,605.68,604.61,0.33079175]
[1743440135510,0.30369378,605.67,604.61,0.33079175]
[1743440136113,0.30369322,605.66,604.61,0.33079175]
[1743440136314,0.2877222,605.68,604.61,0.33079175]
[1743440136509,0.30369351,605.67,604.61,0.33079175]
[1743440136714,0.30369351,605.88,604.61,0.33079175]
[1743440136914,0.28766393,605.67,604.61,0.33079175]
[1743440137413,0.33009292,605.89,604.61,0.33079175]
[1743440137709,0.30368767,605.88,604.61,0.33079175]
[1743440138312,0.28767701,605.87,604.61,0.33079175]
[1743440138516,0.30368767,605.86,604.61,0.33079175]
[1743440142721,0.59137895,605.85,604.61,0.33079175]
[1743440142915,0.30368767,605.84,604.61,0.33079175]
[1743440145520,0.30368767,605.83,604.61,0.33079175]
[1743440145722,0.30368767,605.82,604.61,0.33079175]
[1743440145918,0.30368767,605.81,604.61,0.33079175]
[1743440146220,0.30368767,605.8,604.61,0.33079175]
[1743440146420,0.30368767,605.79,604.61,0.33079175]
[1743440146620,0.30368767,605.78,604.61,0.33079175]
[1743440146820,0.63384598,605.77,604.61,0.33079175]
[1743440147020,0.30368767,605.76,604.61,0.33079175]
[1743440147220,0.30368767,605.75,604.61,0.33079175]
[1743440147422,0.30368767,605.74,604.61,0.33079175]
[1743440147617,0.30368767,605.73,604.61,0.33079175]
[1743440147924,0.98657779,605.75,604.61,0.33079175]
[1743440148117,0.30380241,605.74,604.61,0.33079175]
[1743440148319,0.30380241,605.73,604.61,0.33079175]
[1743440148523,0.30380241,605.72,604.61,0.33079175]
[1743440148722,0.30380241,605.71,604.61,0.33079175]
[1743440151527,1.072,605.7,604.61,0.33079175]
[1743440151728,0.30380241,605.69,604.61,0.33079175]
[1743440153427,0.30380241,605.68,604.61,0.33079175]
[1743440153623,0.30380241,605.67,604.61,0.33079175]
[1743440153828,0.30380241,605.66,604.61,0.33079175]
[1743440154029,0.30380241,605.65,604.61,0.33079175]
[1743440154230,0.30380241,605.64,604.61,0.33079175]
[1743440154431,0.30380241,605.63,604.61,0.33079175]
[1743440154633,0.30380241,605.62,604.61,0.33079175]